[Event "*** Titled Tuesday Blitz"]
[Site "Chess.com"]
[Date "2020.03.03"]
[Round "5"]
[White "Ariadna_Atreides"]
[Black "WeAintSurePal"]
[Result "1/2-1/2"]
[WhiteElo "2122"]
[BlackElo "2300"]
[TimeControl "180+1"]
[EndTime "9:53:47 PST"]
[Termination "Game drawn by stalemate"]

1. d4 {[%clk 0:03:00.2]} 1... c6 {[%clk 0:03:00.9]} 2. Nf3 {[%clk 0:02:58.2]}
2... d5 {[%clk 0:03:01.8]} 3. c4 {[%clk 0:02:58.3]} 3... Nf6 {[%clk 0:03:01.1]}
4. Nbd2 {[%clk 0:02:56.4]} 4... a6 {[%clk 0:02:59.5]} 5. e3 {[%clk 0:02:42.5]}
5... Bg4 {[%clk 0:02:57.6]} 6. Be2 {[%clk 0:02:41.2]} 6... Nbd7 {[%clk
0:02:57.2]} 7. h3 {[%clk 0:02:39.2]} 7... Bxf3 {[%clk 0:02:57]} 8. Bxf3 {[%clk
0:02:36.8]} 8... e6 {[%clk 0:02:57.9]} 9. O-O {[%clk 0:02:33.8]} 9... Bd6 {[%clk
0:02:57.2]} 10. e4 {[%clk 0:02:32.9]} 10... dxe4 {[%clk 0:02:56]} 11. Nxe4
{[%clk 0:02:32.9]} 11... Nxe4 {[%clk 0:02:56.9]} 12. Bxe4 {[%clk 0:02:32.9]}
12... Qh4 {[%clk 0:02:54]} 13. Qf3 {[%clk 0:02:20.4]} 13... O-O {[%clk
0:02:48.1]} 14. Rd1 {[%clk 0:02:14.4]} 14... Rae8 {[%clk 0:02:46.8]} 15. b3
{[%clk 0:02:05.7]} 15... e5 {[%clk 0:02:46.4]} 16. dxe5 {[%clk 0:01:17.3]} 16...
Nxe5 {[%clk 0:02:42.7]} 17. Qf4 {[%clk 0:01:14.7]} 17... Qxf4 {[%clk 0:02:01]}
18. Bxf4 {[%clk 0:01:13.8]} 18... Nf3+ {[%clk 0:02:01.9]} 19. Bxf3 {[%clk
0:01:12.6]} 19... Bxf4 {[%clk 0:02:02.8]} 20. g3 {[%clk 0:01:08]} 20... Be5
{[%clk 0:02:00.1]} 21. Rac1 {[%clk 0:01:05.2]} 21... Rd8 {[%clk 0:02:00.3]} 22.
Kf1 {[%clk 0:01:03.9]} 22... Rfe8 {[%clk 0:01:58.5]} 23. Rxd8 {[%clk 0:01:00.6]}
23... Rxd8 {[%clk 0:01:59.4]} 24. Rd1 {[%clk 0:01:00.4]} 24... Rxd1+ {[%clk
0:01:58.4]} 25. Bxd1 {[%clk 0:00:59.9]} 25... Kf8 {[%clk 0:01:58.8]} 26. Bc2
{[%clk 0:00:59.1]} 26... g6 {[%clk 0:01:58.5]} 27. Ke2 {[%clk 0:00:55.4]} 27...
Ke7 {[%clk 0:01:58.9]} 28. f4 {[%clk 0:00:53.5]} 28... Bc7 {[%clk 0:01:57.5]}
29. Kf3 {[%clk 0:00:52.8]} 29... Kd6 {[%clk 0:01:57.3]} 30. Ke4 {[%clk
0:00:51.4]} 30... Kc5 {[%clk 0:01:57.2]} 31. a3 {[%clk 0:00:44.3]} 31... b5
{[%clk 0:01:51.5]} 32. cxb5 {[%clk 0:00:41.7]} 32... cxb5 {[%clk 0:01:51]} 33.
g4 {[%clk 0:00:40.3]} 33... a5 {[%clk 0:01:44.6]} 34. f5 {[%clk 0:00:37.2]}
34... Bd6 {[%clk 0:01:40.5]} 35. fxg6 {[%clk 0:00:35.9]} 35... fxg6 {[%clk
0:01:35.6]} 36. h4 {[%clk 0:00:32.8]} 36... Bg3 {[%clk 0:01:30.3]} 37. h5 {[%clk
0:00:29]} 37... gxh5 {[%clk 0:01:30.3]} 38. gxh5 {[%clk 0:00:28.4]} 38... h6
{[%clk 0:01:30.7]} 39. a4 {[%clk 0:00:25.3]} 39... Be1 {[%clk 0:01:22.5]} 40.
axb5 {[%clk 0:00:23.7]} 40... Kxb5 {[%clk 0:01:22.4]} 41. Bd1 {[%clk 0:00:20.2]}
41... Kb4 {[%clk 0:01:21.1]} 42. Kf5 {[%clk 0:00:19.3]} 42... Kc3 {[%clk
0:01:20.6]} 43. Kg6 {[%clk 0:00:18.8]} 43... Bd2 {[%clk 0:01:20.8]} 44. Kg7
{[%clk 0:00:17]} 44... Bg5 {[%clk 0:01:20.7]} 45. Kg6 {[%clk 0:00:16.2]} 45...
Kd2 {[%clk 0:01:20.7]} 46. Bf3 {[%clk 0:00:15.1]} 46... Kc2 {[%clk 0:01:19]} 47.
Bd5 {[%clk 0:00:14.8]} 47... Kd3 {[%clk 0:01:19.2]} 48. Bc4+ {[%clk 0:00:14.4]}
48... Kd4 {[%clk 0:01:19.3]} 49. Kg7 {[%clk 0:00:13.7]} 49... Kc5 {[%clk
0:01:19.1]} 50. Kg6 {[%clk 0:00:13.5]} 50... a4 {[%clk 0:01:17.2]} 51. bxa4
{[%clk 0:00:09.2]} 51... Kxc4 {[%clk 0:01:16.8]} 52. Kf5 {[%clk 0:00:09.2]}
52... Kd3 {[%clk 0:01:12.8]} 53. Kg4 {[%clk 0:00:08.6]} 53... Ke2 {[%clk
0:01:12.9]} 54. Kh3 {[%clk 0:00:07.3]} 54... Kf1 {[%clk 0:01:13.6]} 55. Kh2
{[%clk 0:00:06.3]} 55... Bf4+ {[%clk 0:01:11.3]} 56. Kh1 {[%clk 0:00:05.6]}
56... Bb8 {[%clk 0:01:11.5]} 57. a5 {[%clk 0:00:04.9]} 57... Ba7 {[%clk
0:01:09.1]} 58. a6 {[%clk 0:00:04.8]} 58... Kf2 {[%clk 0:01:10]} 59. Kh2 {[%clk
0:00:03.2]} 59... Kf3 {[%clk 0:01:10.9]} 60. Kh3 {[%clk 0:00:03.2]} 60... Kf4
{[%clk 0:01:10.4]} 61. Kh4 {[%clk 0:00:03.4]} 61... Bf2+ {[%clk 0:01:08.1]} 62.
Kh3 {[%clk 0:00:03.6]} 62... Kg5 {[%clk 0:01:08.1]} 63. a7 {[%clk 0:00:03.6]}
63... Bxa7 {[%clk 0:01:07.9]} 64. Kg2 {[%clk 0:00:03.2]} 64... Kxh5 {[%clk
0:01:08.8]} 65. Kh1 {[%clk 0:00:02.8]} 65... Kh4 {[%clk 0:01:09.7]} 66. Kg2
{[%clk 0:00:02.9]} 66... Kg4 {[%clk 0:01:05.6]} 67. Kh1 {[%clk 0:00:02.9]} 67...
Bb8 {[%clk 0:01:06.5]} 68. Kg2 {[%clk 0:00:02.9]} 68... Kh4 {[%clk 0:01:07.4]}
69. Kh1 {[%clk 0:00:02.8]} 69... Kh3 {[%clk 0:01:08.3]} 70. Kg1 {[%clk
0:00:02.8]} 70... Be5 {[%clk 0:01:05.3]} 71. Kh1 {[%clk 0:00:03]} 71... Bf6
{[%clk 0:01:05.6]} 72. Kg1 {[%clk 0:00:03.4]} 72... Bh4 {[%clk 0:01:05.9]} 73.
Kh1 {[%clk 0:00:03.8]} 73... Be1 {[%clk 0:01:06.3]} 74. Kg1 {[%clk 0:00:04]}
74... Bf2+ {[%clk 0:01:06]} 75. Kh1 {[%clk 0:00:04.3]} 75... Bg3 {[%clk
0:01:04.4]} 76. Kg1 {[%clk 0:00:04.5]} 76... Kg4 {[%clk 0:01:05]} 77. Kh1 {[%clk
0:00:04.7]} 77... Kf3 {[%clk 0:01:05.9]} 78. Kg1 {[%clk 0:00:04.9]} 78... Be5
{[%clk 0:01:04.3]} 79. Kh1 {[%clk 0:00:04.8]} 79... Bb2 {[%clk 0:01:05.2]} 80.
Kg1 {[%clk 0:00:04.9]} 80... Bc1 {[%clk 0:01:06.1]} 81. Kh1 {[%clk 0:00:04.6]}
81... h5 {[%clk 0:01:07]} 82. Kh2 {[%clk 0:00:04]} 82... Kg4 {[%clk 0:01:07.9]}
83. Kh1 {[%clk 0:00:03.7]} 83... Kh4 {[%clk 0:01:08.8]} 84. Kh2 {[%clk
0:00:03.7]} 84... Bf4+ {[%clk 0:01:06.3]} 85. Kh1 {[%clk 0:00:04]} 85... Bg3
{[%clk 0:01:07.2]} 86. Kg2 {[%clk 0:00:04]} 86... Kg4 {[%clk 0:01:06.6]} 87. Kg1
{[%clk 0:00:04.3]} 87... Kh3 {[%clk 0:01:07.5]} 88. Kh1 {[%clk 0:00:04.4]} 88...
Be1 {[%clk 0:01:07]} 89. Kg1 {[%clk 0:00:04.7]} 89... h4 {[%clk 0:01:07.9]} 90.
Kh1 {[%clk 0:00:05]} 90... Bg3 {[%clk 0:01:06.2]} 91. Kg1 {[%clk 0:00:05.3]}
91... Bh2+ {[%clk 0:01:07.1]} 92. Kh1 {[%clk 0:00:05.3]} 92... Kg3 {[%clk
0:01:06.7]} 1/2-1/2

[Event "*** Titled Tuesday Blitz"]
[Site "Chess.com"]
[Date "2020.03.03"]
[Round "5"]
[White "MarcoRiehle"]
[Black "vladislavkovalev"]
[Result "0-1"]
[WhiteElo "2743"]
[BlackElo "2898"]
[TimeControl "180+1"]
[EndTime "9:53:51 PST"]
[Termination "vladislavkovalev won by resignation"]

1. e4 {[%clk 0:02:36.3]} 1... e5 {[%clk 0:02:59.9]} 2. Nf3 {[%clk 0:02:36.2]}
2... Nc6 {[%clk 0:03:00.3]} 3. Bc4 {[%clk 0:02:35.7]} 3... Nf6 {[%clk
0:02:58.8]} 4. Ng5 {[%clk 0:02:33.1]} 4... d5 {[%clk 0:02:58.4]} 5. exd5 {[%clk
0:02:32.8]} 5... Na5 {[%clk 0:02:59]} 6. Bb5+ {[%clk 0:02:33.3]} 6... c6 {[%clk
0:02:59.5]} 7. dxc6 {[%clk 0:02:33.7]} 7... bxc6 {[%clk 0:03:00.4]} 8. Be2
{[%clk 0:02:31.4]} 8... h6 {[%clk 0:03:00.4]} 9. Nh3 {[%clk 0:02:30.8]} 9... Bd6
{[%clk 0:02:43.1]} 10. d3 {[%clk 0:02:29.3]} 10... O-O {[%clk 0:02:39.7]} 11.
O-O {[%clk 0:02:28]} 11... c5 {[%clk 0:02:28.8]} 12. Bf3 {[%clk 0:02:22.5]}
12... Rb8 {[%clk 0:02:28.9]} 13. Nc3 {[%clk 0:02:21.5]} 13... c4 {[%clk
0:02:13]} 14. Kh1 {[%clk 0:02:11.2]} 14... cxd3 {[%clk 0:02:04.9]} 15. Qxd3
{[%clk 0:02:11]} 15... Be6 {[%clk 0:01:50]} 16. Rd1 {[%clk 0:02:04.8]} 16... Bc5
{[%clk 0:01:46.8]} 17. Qxd8 {[%clk 0:01:57.8]} 17... Rfxd8 {[%clk 0:01:47.7]}
18. Rxd8+ {[%clk 0:01:57.7]} 18... Rxd8 {[%clk 0:01:48.6]} 19. Kg1 {[%clk
0:01:39.8]} 19... Nc4 {[%clk 0:01:33.5]} 20. Be2 {[%clk 0:01:30.1]} 20... Nd2
{[%clk 0:01:20.3]} 21. a3 {[%clk 0:01:08.6]} 21... a5 {[%clk 0:00:58.7]} 22. Na4
{[%clk 0:00:54.2]} 22... Ba7 {[%clk 0:00:57.2]} 23. Nc3 {[%clk 0:00:54.1]} 23...
g5 {[%clk 0:00:55.8]} 24. b4 {[%clk 0:00:35.3]} 24... g4 {[%clk 0:00:52.9]} 25.
bxa5 {[%clk 0:00:30.2]} 25... gxh3 {[%clk 0:00:53.1]} 26. a6 {[%clk 0:00:28.7]}
26... Bc8 {[%clk 0:00:35.4]} 27. gxh3 {[%clk 0:00:25.4]} 27... e4 {[%clk
0:00:27.2]} 28. Kg2 {[%clk 0:00:17.3]} 28... e3 {[%clk 0:00:22.5]} 29. fxe3
{[%clk 0:00:17]} 29... Bxe3 {[%clk 0:00:23.4]} 30. Bb2 {[%clk 0:00:16.4]} 30...
Bd7 {[%clk 0:00:19.6]} 31. Rd1 {[%clk 0:00:14.9]} 31... Bc6+ {[%clk 0:00:19.9]}
32. Kg3 {[%clk 0:00:15.3]} 32... Rb8 {[%clk 0:00:10]} 33. Bc1 {[%clk 0:00:12.8]}
33... Nfe4+ {[%clk 0:00:09.8]} 34. Nxe4 {[%clk 0:00:11.5]} 34... Nxe4+ {[%clk
0:00:10.7]} 35. Kh4 {[%clk 0:00:11.6]} 35... Bg5+ {[%clk 0:00:07.3]} 36. Bxg5
{[%clk 0:00:11]} 36... hxg5+ {[%clk 0:00:08.2]} 37. Kh5 {[%clk 0:00:11.5]} 37...
Kg7 {[%clk 0:00:08.9]} 38. Rg1 {[%clk 0:00:08.2]} 38... f5 {[%clk 0:00:07.3]}
39. Rxg5+ {[%clk 0:00:04]} 39... Nxg5 {[%clk 0:00:08.2]} 40. Kxg5 {[%clk
0:00:04.9]} 40... Re8 {[%clk 0:00:06.9]} 41. Bd3 {[%clk 0:00:04]} 41... Rf8
{[%clk 0:00:07]} 42. Kf4 {[%clk 0:00:03.2]} 42... Kf6 {[%clk 0:00:03.8]} 43.
Bxf5 {[%clk 0:00:01.9]} 43... Bb5 {[%clk 0:00:03.7]} 44. h4 {[%clk 0:00:02.2]}
44... Bxa6 {[%clk 0:00:03.5]} 45. Be4 {[%clk 0:00:03.1]} 45... Bc8 {[%clk
0:00:03.7]} 46. h5 {[%clk 0:00:03.3]} 46... Be6 {[%clk 0:00:04.4]} 47. h6 {[%clk
0:00:03.6]} 47... Rc8 {[%clk 0:00:04.7]} 48. h4 {[%clk 0:00:03.5]} 48... Rc3
{[%clk 0:00:05]} 49. h7 {[%clk 0:00:03.9]} 49... Kg7 {[%clk 0:00:04.2]} 50. h5
{[%clk 0:00:04.8]} 50... Rxa3 {[%clk 0:00:04.4]} 51. h6+ {[%clk 0:00:05.7]}
51... Kh8 {[%clk 0:00:05.1]} 52. Ke5 {[%clk 0:00:05.6]} 52... Ba2 {[%clk
0:00:05.7]} 53. Kd4 {[%clk 0:00:05.3]} 53... Ra4+ {[%clk 0:00:06.2]} 54. c4
{[%clk 0:00:05.2]} 54... Rxc4+ {[%clk 0:00:06]} 55. Ke5 {[%clk 0:00:05.7]} 55...
Rc7 {[%clk 0:00:06.6]} 56. Kf4 {[%clk 0:00:06.1]} 56... Bb3 {[%clk 0:00:06.3]}
57. Ke5 {[%clk 0:00:06.4]} 57... Bc2 {[%clk 0:00:06.8]} 58. Bd5 {[%clk
0:00:07.3]} 58... Bxh7 {[%clk 0:00:06.3]} 59. Kd6 {[%clk 0:00:07.7]} 59... Ra7
{[%clk 0:00:07.2]} 60. Ke5 {[%clk 0:00:07.8]} 60... Bg8 {[%clk 0:00:07.7]} 61.
Be4 {[%clk 0:00:07.5]} 61... Re7+ {[%clk 0:00:08.4]} 62. Kf4 {[%clk 0:00:07.7]}
62... Bh7 {[%clk 0:00:08.9]} 63. Bd5 {[%clk 0:00:07.8]} 63... Re8 {[%clk
0:00:09.1]} 64. Kg5 {[%clk 0:00:08]} 64... Rf8 {[%clk 0:00:10]} 65. Be6 {[%clk
0:00:07.6]} 65... Bg8 {[%clk 0:00:10.6]} 66. Bf5 {[%clk 0:00:07.4]} 66... Rd8
{[%clk 0:00:11.2]} 67. Bg4 {[%clk 0:00:07.3]} 67... Rd5+ {[%clk 0:00:11.2]} 68.
Kf6 {[%clk 0:00:07.4]} 68... Rd6+ {[%clk 0:00:11.8]} 69. Kg5 {[%clk 0:00:07.4]}
69... Bh7 {[%clk 0:00:12.2]} 70. Bf3 {[%clk 0:00:06.1]} 70... Rg6+ {[%clk
0:00:12]} 71. Kh5 {[%clk 0:00:06.4]} 71... Rg3 {[%clk 0:00:12.5]} 72. Bd5 {[%clk
0:00:05.9]} 72... Rg1 {[%clk 0:00:12.4]} 73. Be6 {[%clk 0:00:05.8]} 73... Bg6+
{[%clk 0:00:12.7]} 74. Kh4 {[%clk 0:00:05.5]} 74... Kh7 {[%clk 0:00:13.4]} 0-1

[Event "*** Titled Tuesday Blitz"]
[Site "Chess.com"]
[Date "2020.03.03"]
[Round "5"]
[White "FedaMaster"]
[Black "farzadbfd"]
[Result "0-1"]
[WhiteElo "2421"]
[BlackElo "2630"]
[TimeControl "180+1"]
[EndTime "9:53:52 PST"]
[Termination "farzadbfd won by checkmate"]

1. e4 {[%clk 0:03:00.9]} 1... c5 {[%clk 0:02:59.3]} 2. Nf3 {[%clk 0:02:58.6]}
2... e6 {[%clk 0:02:59.8]} 3. d4 {[%clk 0:02:58.4]} 3... cxd4 {[%clk 0:03:00.7]}
4. Nxd4 {[%clk 0:02:58.6]} 4... Nc6 {[%clk 0:03:01.2]} 5. Nc3 {[%clk 0:02:56.1]}
5... Qc7 {[%clk 0:03:01.3]} 6. Be3 {[%clk 0:02:55.2]} 6... a6 {[%clk 0:02:59.9]}
7. Be2 {[%clk 0:02:53.9]} 7... Nf6 {[%clk 0:02:58.4]} 8. a3 {[%clk 0:02:52.4]}
8... b5 {[%clk 0:02:52.6]} 9. Nb3 {[%clk 0:02:43]} 9... Ne5 {[%clk 0:02:41.5]}
10. O-O {[%clk 0:02:39.1]} 10... Bb7 {[%clk 0:02:40.1]} 11. f3 {[%clk
0:02:33.3]} 11... Nc4 {[%clk 0:02:31.3]} 12. Bxc4 {[%clk 0:02:30.2]} 12... bxc4
{[%clk 0:02:32.2]} 13. Nd4 {[%clk 0:02:18.2]} 13... Be7 {[%clk 0:02:26.6]} 14.
Qe1 {[%clk 0:02:15.5]} 14... O-O {[%clk 0:02:24.3]} 15. Rd1 {[%clk 0:02:15.2]}
15... Rfd8 {[%clk 0:02:13.4]} 16. Kh1 {[%clk 0:02:12.5]} 16... d5 {[%clk
0:02:04.1]} 17. exd5 {[%clk 0:02:12.5]} 17... Nxd5 {[%clk 0:02:05]} 18. Nxd5
{[%clk 0:02:12.2]} 18... Bxd5 {[%clk 0:02:05.9]} 19. Ne2 {[%clk 0:02:05.7]}
19... Qe5 {[%clk 0:01:39.6]} 20. Bd4 {[%clk 0:01:58.9]} 20... Qf5 {[%clk
0:01:38.6]} 21. Nc3 {[%clk 0:01:38.4]} 21... Qxc2 {[%clk 0:01:19.2]} 22. Qe3
{[%clk 0:01:05.7]} 22... Qf5 {[%clk 0:01:15.2]} 23. Rd2 {[%clk 0:01:02.2]} 23...
Rd7 {[%clk 0:01:04.2]} 24. Rfd1 {[%clk 0:00:56.8]} 24... Bg5 {[%clk 0:01:03.3]}
25. Qf2 {[%clk 0:00:47.7]} 25... Bxd2 {[%clk 0:01:01.7]} 26. Rxd2 {[%clk
0:00:48.6]} 26... Bc6 {[%clk 0:00:59.2]} 27. Be3 {[%clk 0:00:29.2]} 27... Rxd2
{[%clk 0:00:57]} 28. Bxd2 {[%clk 0:00:30.1]} 28... Rd8 {[%clk 0:00:52]} 29. h3
{[%clk 0:00:27.5]} 29... Qd3 {[%clk 0:00:49.1]} 30. Be3 {[%clk 0:00:27.4]} 30...
Bd5 {[%clk 0:00:45.9]} 31. Bb6 {[%clk 0:00:23.4]} 31... Rc8 {[%clk 0:00:45.3]}
32. a4 {[%clk 0:00:21]} 32... h6 {[%clk 0:00:44]} 33. a5 {[%clk 0:00:21.1]}
33... Bb7 {[%clk 0:00:40.7]} 34. Qg3 {[%clk 0:00:14.7]} 34... Qd2 {[%clk
0:00:30.6]} 35. Kh2 {[%clk 0:00:09.5]} 35... Re8 {[%clk 0:00:20.8]} 36. Qc7
{[%clk 0:00:08.1]} 36... Bc8 {[%clk 0:00:21]} 37. Qxc4 {[%clk 0:00:05.5]} 37...
Qxb2 {[%clk 0:00:20.5]} 38. Qc6 {[%clk 0:00:04.5]} 38... Rf8 {[%clk 0:00:19.4]}
39. Ne4 {[%clk 0:00:04.4]} 39... Qe5+ {[%clk 0:00:17.1]} 40. Kg1 {[%clk
0:00:03.6]} 40... Qd5 {[%clk 0:00:17.4]} 41. Qc7 {[%clk 0:00:02.3]} 41... Bb7
{[%clk 0:00:14]} 42. Nd6 {[%clk 0:00:02]} 42... Bc6 {[%clk 0:00:13.9]} 43. Nc8
{[%clk 0:00:01.3]} 43... Qd1+ {[%clk 0:00:10.6]} 44. Kh2 {[%clk 0:00:01.9]}
44... Bb5 {[%clk 0:00:07.5]} 45. Ne7+ {[%clk 0:00:02.3]} 45... Kh8 {[%clk
0:00:07.3]} 46. Qc5 {[%clk 0:00:03.2]} 46... Qd7 {[%clk 0:00:06.5]} 47. Ng6+
{[%clk 0:00:03.2]} 47... fxg6 {[%clk 0:00:07.4]} 48. Qxf8+ {[%clk 0:00:03.7]}
48... Kh7 {[%clk 0:00:08.3]} 49. Qf4 {[%clk 0:00:03.4]} 49... Qd5 {[%clk
0:00:06.8]} 50. Bd4 {[%clk 0:00:03.7]} 50... Qd7 {[%clk 0:00:06.4]} 51. Qe5
{[%clk 0:00:03.9]} 51... Bc6 {[%clk 0:00:07.1]} 52. Kg3 {[%clk 0:00:04]} 52...
Bd5 {[%clk 0:00:07.6]} 53. Kf2 {[%clk 0:00:04.5]} 53... Qf7 {[%clk 0:00:08.5]}
54. g4 {[%clk 0:00:04.9]} 54... h5 {[%clk 0:00:07.7]} 55. Qg5 {[%clk 0:00:04.6]}
55... Kg8 {[%clk 0:00:07.1]} 56. Qe3 {[%clk 0:00:04.4]} 56... hxg4 {[%clk
0:00:07]} 57. hxg4 {[%clk 0:00:05.3]} 57... g5 {[%clk 0:00:07.4]} 58. Kg3 {[%clk
0:00:05.7]} 58... Kh7 {[%clk 0:00:06.5]} 59. Be5 {[%clk 0:00:06.6]} 59... Qg6
{[%clk 0:00:06.6]} 60. Kf2 {[%clk 0:00:07.2]} 60... Qh6 {[%clk 0:00:07.1]} 61.
Kg3 {[%clk 0:00:08.1]} 61... Qh4+ {[%clk 0:00:07.1]} 62. Kg2 {[%clk 0:00:08.6]}
62... Qxg4+ {[%clk 0:00:08]} 63. Kf2 {[%clk 0:00:09.5]} 63... Qf5 {[%clk
0:00:08.8]} 64. Bg3 {[%clk 0:00:10]} 64... g4 {[%clk 0:00:09.1]} 65. f4 {[%clk
0:00:10.6]} 65... Qc2+ {[%clk 0:00:09.1]} 66. Ke1 {[%clk 0:00:11]} 66... Qf5
{[%clk 0:00:10]} 67. Kd2 {[%clk 0:00:11]} 67... Qe4 {[%clk 0:00:10.5]} 68. Qb6
{[%clk 0:00:10.2]} 68... Qg2+ {[%clk 0:00:09.9]} 69. Qf2 {[%clk 0:00:10.5]}
69... Qxf2+ {[%clk 0:00:09.1]} 70. Bxf2 {[%clk 0:00:10.9]} 70... Kg6 {[%clk
0:00:09.7]} 71. Bd4 {[%clk 0:00:11.1]} 71... Kf5 {[%clk 0:00:10.6]} 72. Be5
{[%clk 0:00:10.1]} 72... Ke4 {[%clk 0:00:10.5]} 73. Ke2 {[%clk 0:00:10.2]} 73...
g5 {[%clk 0:00:10.5]} 74. fxg5 {[%clk 0:00:10.7]} 74... Kxe5 {[%clk 0:00:10.6]}
75. g6 {[%clk 0:00:11.6]} 75... Kf6 {[%clk 0:00:11.2]} 76. g7 {[%clk 0:00:12.5]}
76... Kxg7 {[%clk 0:00:11.5]} 77. Kf2 {[%clk 0:00:13.4]} 77... Kg6 {[%clk
0:00:12]} 78. Kg3 {[%clk 0:00:14.3]} 78... Kg5 {[%clk 0:00:12.9]} 79. Kf2 {[%clk
0:00:14.7]} 79... e5 {[%clk 0:00:13.6]} 80. Ke3 {[%clk 0:00:15.6]} 80... Kf5
{[%clk 0:00:13.7]} 81. Kf2 {[%clk 0:00:16.5]} 81... Bf3 {[%clk 0:00:13.9]} 82.
Kg1 {[%clk 0:00:17.4]} 82... Kf4 {[%clk 0:00:14.1]} 83. Kf2 {[%clk 0:00:18.3]}
83... e4 {[%clk 0:00:14.6]} 84. Kg1 {[%clk 0:00:19.2]} 84... Kg3 {[%clk
0:00:14.6]} 85. Kf1 {[%clk 0:00:20]} 85... Be2+ {[%clk 0:00:14.6]} 86. Kg1
{[%clk 0:00:20.9]} 86... Bd3 {[%clk 0:00:14.4]} 87. Kh1 {[%clk 0:00:21.8]} 87...
e3 {[%clk 0:00:14.9]} 88. Kg1 {[%clk 0:00:22.7]} 88... e2 {[%clk 0:00:15.3]} 89.
Kh1 {[%clk 0:00:23.6]} 89... e1=Q# {[%clk 0:00:16.2]} 0-1

[Event "*** Titled Tuesday Blitz"]
[Site "Chess.com"]
[Date "2020.03.03"]
[Round "5"]
[White "JSPrepz"]
[Black "Omk124"]
[Result "1-0"]
[WhiteElo "2753"]
[BlackElo "2461"]
[TimeControl "180+1"]
[EndTime "9:54:02 PST"]
[Termination "JSPrepz won by checkmate"]

1. e4 {[%clk 0:03:00.9]} 1... c5 {[%clk 0:02:59]} 2. Nf3 {[%clk 0:03:01.1]} 2...
d6 {[%clk 0:02:59.4]} 3. Nc3 {[%clk 0:03:01.7]} 3... Nf6 {[%clk 0:02:58.7]} 4.
e5 {[%clk 0:03:02.2]} 4... dxe5 {[%clk 0:02:58.8]} 5. Nxe5 {[%clk 0:03:03.1]}
5... a6 {[%clk 0:02:57.4]} 6. g3 {[%clk 0:03:03.3]} 6... e6 {[%clk 0:02:58]} 7.
Bg2 {[%clk 0:03:02.8]} 7... Bd6 {[%clk 0:02:58.2]} 8. Nc4 {[%clk 0:03:00.6]}
8... Bc7 {[%clk 0:02:54.7]} 9. d3 {[%clk 0:02:56.6]} 9... O-O {[%clk 0:02:54.2]}
10. Be3 {[%clk 0:02:56.5]} 10... Nbd7 {[%clk 0:02:53.8]} 11. a4 {[%clk
0:02:53.1]} 11... Rb8 {[%clk 0:02:38.1]} 12. a5 {[%clk 0:02:53.3]} 12... Ne5
{[%clk 0:02:37.3]} 13. Bxc5 {[%clk 0:02:48.5]} 13... Re8 {[%clk 0:02:33.4]} 14.
O-O {[%clk 0:02:47.9]} 14... Nxc4 {[%clk 0:02:29.2]} 15. dxc4 {[%clk 0:02:46.3]}
15... Bxa5 {[%clk 0:02:27.8]} 16. Qxd8 {[%clk 0:02:24]} 16... Bxd8 {[%clk
0:02:28.5]} 17. Bd6 {[%clk 0:02:22.1]} 17... Ra8 {[%clk 0:02:28]} 18. Rfd1
{[%clk 0:02:19.6]} 18... Bb6 {[%clk 0:02:20.4]} 19. c5 {[%clk 0:02:18.7]} 19...
Ba7 {[%clk 0:02:13.9]} 20. c6 {[%clk 0:02:14.3]} 20... Nd5 {[%clk 0:01:39.5]}
21. Nxd5 {[%clk 0:01:46.9]} 21... exd5 {[%clk 0:01:40.4]} 22. Bxd5 {[%clk
0:01:47.8]} 22... Bg4 {[%clk 0:01:30.7]} 23. cxb7 {[%clk 0:01:44.7]} 23... Rad8
{[%clk 0:01:30.3]} 24. Re1 {[%clk 0:01:09.4]} 24... Rxe1+ {[%clk 0:01:25.1]} 25.
Rxe1 {[%clk 0:01:10.3]} 25... g6 {[%clk 0:01:21.4]} 26. b8=Q {[%clk 0:00:25.9]}
26... Bxb8 {[%clk 0:01:17.4]} 27. Bxb8 {[%clk 0:00:26.2]} 27... Rxd5 {[%clk
0:01:16]} 28. Bf4 {[%clk 0:00:26.3]} 28... Be6 {[%clk 0:01:14.6]} 29. Ra1 {[%clk
0:00:22.3]} 29... g5 {[%clk 0:00:48.1]} 30. Be3 {[%clk 0:00:21.1]} 30... Rb5
{[%clk 0:00:47.6]} 31. b3 {[%clk 0:00:20.8]} 31... Bc8 {[%clk 0:00:35]} 32. f4
{[%clk 0:00:19.4]} 32... gxf4 {[%clk 0:00:35]} 33. Bxf4 {[%clk 0:00:20.3]} 33...
f6 {[%clk 0:00:33.8]} 34. Kf2 {[%clk 0:00:20.1]} 34... Kf7 {[%clk 0:00:34]} 35.
Ra3 {[%clk 0:00:19.4]} 35... Rb6 {[%clk 0:00:31.8]} 36. Be3 {[%clk 0:00:19.4]}
36... Rc6 {[%clk 0:00:32.1]} 37. c4 {[%clk 0:00:19.9]} 37... Be6 {[%clk
0:00:31.8]} 38. Ra5 {[%clk 0:00:19.8]} 38... Kg6 {[%clk 0:00:30.4]} 39. Bc5
{[%clk 0:00:20]} 39... Kf5 {[%clk 0:00:30]} 40. Kf3 {[%clk 0:00:19.7]} 40... Kg6
{[%clk 0:00:29.7]} 41. Bd4 {[%clk 0:00:18.4]} 41... h5 {[%clk 0:00:29.3]} 42.
Be3 {[%clk 0:00:18]} 42... Bg4+ {[%clk 0:00:29.1]} 43. Kf2 {[%clk 0:00:18.2]}
43... Bd1 {[%clk 0:00:29.3]} 44. Ra3 {[%clk 0:00:16.7]} 44... Rd6 {[%clk
0:00:26.4]} 45. c5 {[%clk 0:00:15.7]} 45... Rc6 {[%clk 0:00:26.1]} 46. b4 {[%clk
0:00:16.3]} 46... Bg4 {[%clk 0:00:24]} 47. Rd3 {[%clk 0:00:16.3]} 47... Be6
{[%clk 0:00:22.8]} 48. Rd8 {[%clk 0:00:16.3]} 48... Bc4 {[%clk 0:00:22.7]} 49.
Bf4 {[%clk 0:00:15.4]} 49... Bb5 {[%clk 0:00:22.6]} 50. Bd6 {[%clk 0:00:15.5]}
50... Kf7 {[%clk 0:00:17.7]} 51. Ke3 {[%clk 0:00:15.4]} 51... Bc4 {[%clk
0:00:17.4]} 52. Rh8 {[%clk 0:00:15]} 52... Kg7 {[%clk 0:00:16]} 53. Rxh5 {[%clk
0:00:14.3]} 53... Bf7 {[%clk 0:00:16.4]} 54. Rh4 {[%clk 0:00:14.3]} 54... Rc8
{[%clk 0:00:16.6]} 55. Rg4+ {[%clk 0:00:14.4]} 55... Bg6 {[%clk 0:00:17.2]} 56.
Kd4 {[%clk 0:00:14]} 56... Kf7 {[%clk 0:00:16.9]} 57. h4 {[%clk 0:00:13.9]}
57... Re8 {[%clk 0:00:17.1]} 58. Rf4 {[%clk 0:00:13.8]} 58... Re1 {[%clk
0:00:17]} 59. c6 {[%clk 0:00:14.1]} 59... Rd1+ {[%clk 0:00:16.5]} 60. Kc5 {[%clk
0:00:14.6]} 60... Rc1+ {[%clk 0:00:14.9]} 61. Kb6 {[%clk 0:00:15]} 61... Ke6
{[%clk 0:00:15.4]} 62. Bc5 {[%clk 0:00:15.5]} 62... a5 {[%clk 0:00:08.6]} 63. c7
{[%clk 0:00:15.2]} 63... Kf7 {[%clk 0:00:07.2]} 64. c8=Q {[%clk 0:00:14.7]}
64... Kg7 {[%clk 0:00:08.1]} 65. Qf8+ {[%clk 0:00:14.2]} 65... Kh7 {[%clk
0:00:08.3]} 66. Qxf6 {[%clk 0:00:13.9]} 66... axb4 {[%clk 0:00:08]} 67. Qe7+
{[%clk 0:00:14.3]} 67... Kh6 {[%clk 0:00:07.4]} 68. Qg5+ {[%clk 0:00:14.5]}
68... Kh7 {[%clk 0:00:07.4]} 69. h5 {[%clk 0:00:14.7]} 69... Rxc5 {[%clk
0:00:04.6]} 70. Qxg6+ {[%clk 0:00:14.3]} 70... Kh8 {[%clk 0:00:05.5]} 71. Rf8#
{[%clk 0:00:15.2]} 1-0